[Event "Titled Tuesday Blitz June 6 Early 2023"]
[White "Shohat, Yotam"]
[Black "Balla, Tamas-Kristof"]
[WhiteFideId "2813955"]
[BlackFideId "1208497"]
[WhiteElo "2226"]
[BlackElo "2334"]
[Result "1-0"]
[Round "10"]
[TimeControl "180+2"]
[Date "2023.06.06"]
[WhiteClock "0:00:07"]
[BlackClock "0:00:04"]
[Board "74"]

1. e4 {[%clk 0:03:00]}  c5 {[%clk 0:03:00]} 2. Nf3 {[%clk 0:03:00]}  Nc6 {[%clk 0:03:00]} 3. d4 {[%clk 0:02:58]}  cxd4 {[%clk 0:03:01]} 4. Nxd4 {[%clk 0:02:59]}  e5 {[%clk 0:03:02]} 5. Nb5 {[%clk 0:02:58]}  d6 {[%clk 0:03:02]} 6. N1c3 {[%clk 0:02:54]}  a6 {[%clk 0:03:02]} 7. Na3 {[%clk 0:02:54]}  b5 {[%clk 0:03:03]} 8. Nd5 {[%clk 0:02:53]}  Nge7 {[%clk 0:03:03]} 9. c4 {[%clk 0:02:37]}  Nxd5 {[%clk 0:03:02]} 10. exd5 {[%clk 0:02:29]}  Nd4 {[%clk 0:03:02]} 11. Bd3 {[%clk 0:02:26]}  Be7 {[%clk 0:02:53]} 12. O-O {[%clk 0:02:25]}  O-O {[%clk 0:02:53]} 13. Be3 {[%clk 0:02:16]}  Nf5 {[%clk 0:02:43]} 14. Bd2 {[%clk 0:02:05]}  Nh4 {[%clk 0:02:26]} 15. cxb5 {[%clk 0:01:55]}  f5 {[%clk 0:02:23]} 16. g3 {[%clk 0:01:41]}  Ng6 {[%clk 0:02:11]} 17. f4 {[%clk 0:01:36]}  axb5 {[%clk 0:02:03]} 18. Nxb5 {[%clk 0:01:32]}  Ba6 {[%clk 0:01:55]} 19. a4 {[%clk 0:01:31]}  exf4 {[%clk 0:01:47]} 20. gxf4 {[%clk 0:01:28]}  Bf6 {[%clk 0:01:22]} 21. Bxf5 {[%clk 0:01:17]}  Bxb2 {[%clk 0:01:14]} 22. Be6+ {[%clk 0:01:16]}  Kh8 {[%clk 0:01:15]} 23. Rb1 {[%clk 0:01:14]}  Bxb5 {[%clk 0:01:05]} 24. axb5 {[%clk 0:01:13]}  Bd4+ {[%clk 0:01:05]} 25. Kh1 {[%clk 0:01:13]}  Qf6 {[%clk 0:01:05]} 26. b6 {[%clk 0:01:03]}  Nh4 {[%clk 0:00:52]} 27. b7 {[%clk 0:01:01]}  Rab8 {[%clk 0:00:51]} 28. Be1 {[%clk 0:00:56]}  Nf5 {[%clk 0:00:46]} 29. Bf2 {[%clk 0:00:25]}  Bxf2 {[%clk 0:00:40]} 30. Rxf2 {[%clk 0:00:26]}  Ne3 {[%clk 0:00:37]} 31. Qd3 {[%clk 0:00:22]}  Nf5 {[%clk 0:00:21]} 32. Bxf5 {[%clk 0:00:22]}  Qxf5 {[%clk 0:00:22]} 33. Qxf5 {[%clk 0:00:21]}  Rxf5 {[%clk 0:00:23]} 34. Rc2 {[%clk 0:00:19]}  Rff8 {[%clk 0:00:22]} 35. Rc6 {[%clk 0:00:15]}  Rfd8 {[%clk 0:00:22]} 36. Kg2 {[%clk 0:00:14]}  h6 {[%clk 0:00:22]} 37. Kf3 {[%clk 0:00:14]}  Kh7 {[%clk 0:00:23]} 38. Rc7 {[%clk 0:00:11]}  Kg6 {[%clk 0:00:19]} 39. Rg1+ {[%clk 0:00:11]}  Kf6 {[%clk 0:00:19]} 40. Rgxg7 {[%clk 0:00:11]}  Rf8 {[%clk 0:00:18]} 41. Rgd7 {[%clk 0:00:11]}  Kg6 {[%clk 0:00:10]} 42. Rxd6+ {[%clk 0:00:09]}  Kh5 {[%clk 0:00:11]} 43. Rh7 {[%clk 0:00:08]}  Rxb7 {[%clk 0:00:04]} 44. Rhxh6# {[%clk 0:00:07]} 1-0


[Site "https://www.chess.com"]

[Event "Titled Tuesday Blitz June 6 Early 2023"]
[White "Shapiro, Viktor"]
[Black "Moral Garcia, Serafin"]
[WhiteFideId "4175700"]
[BlackFideId "2201925"]
[WhiteElo "2212"]
[BlackElo "2274"]
[Result "0-1"]
[Round "10"]
[TimeControl "180+2"]
[Date "2023.06.06"]
[WhiteClock "0:01:06"]
[BlackClock "0:00:46"]
[Board "75"]

1. c4 {[%clk 0:02:56]}  e5 {[%clk 0:02:58]} 2. Nc3 {[%clk 0:02:56]}  Nf6 {[%clk 0:02:57]} 3. g3 {[%clk 0:02:57]}  c6 {[%clk 0:02:56]} 4. Bg2 {[%clk 0:02:56]}  d5 {[%clk 0:02:57]} 5. cxd5 {[%clk 0:02:57]}  cxd5 {[%clk 0:02:57]} 6. Qb3 {[%clk 0:02:58]}  Nc6 {[%clk 0:02:55]} 7. Nxd5 {[%clk 0:02:57]}  Nd4 {[%clk 0:02:53]} 8. Nxf6+ {[%clk 0:02:57]}  Qxf6 {[%clk 0:02:30]} 9. Qd1 {[%clk 0:02:56]}  Bf5 {[%clk 0:02:29]} 10. d3 {[%clk 0:02:54]}  Rc8 {[%clk 0:02:28]} 11. Kf1 {[%clk 0:02:50]}  Bc5 {[%clk 0:02:22]} 12. Nf3 {[%clk 0:02:43]}  Nxf3 {[%clk 0:02:21]} 13. Bxf3 {[%clk 0:02:42]}  Bh3+ {[%clk 0:02:21]} 14. Kg1 {[%clk 0:02:42]}  O-O {[%clk 0:02:17]} 15. Be3 {[%clk 0:02:42]}  Bxe3 {[%clk 0:02:13]} 16. fxe3 {[%clk 0:02:42]}  Qb6 {[%clk 0:02:10]} 17. Kf2 {[%clk 0:02:40]}  Qf6 {[%clk 0:02:01]} 18. Qb3 {[%clk 0:02:37]}  g5 {[%clk 0:01:50]} 19. Qa4 {[%clk 0:02:01]}  g4 {[%clk 0:01:43]} 20. Rhc1 {[%clk 0:01:55]}  gxf3 {[%clk 0:01:39]} 21. exf3 {[%clk 0:01:56]}  Be6 {[%clk 0:01:30]} 22. Qxa7 {[%clk 0:01:49]}  e4 {[%clk 0:01:27]} 23. Qd4 {[%clk 0:01:41]}  Qxf3+ {[%clk 0:01:26]} 24. Kg1 {[%clk 0:01:41]}  exd3 {[%clk 0:01:17]} 25. Rf1 {[%clk 0:01:35]}  Qh5 {[%clk 0:01:15]} 26. Qxd3 {[%clk 0:01:21]}  Rfd8 {[%clk 0:01:08]} 27. Qe4 {[%clk 0:01:21]}  Rd2 {[%clk 0:01:01]} 28. Qh4 {[%clk 0:01:07]}  Qxh4 {[%clk 0:00:53]} 29. gxh4 {[%clk 0:01:08]}  Rcc2 {[%clk 0:00:53]} 30. Rf3 {[%clk 0:01:06]}  Rg2+ {[%clk 0:00:49]} 31. Kh1 {[%clk 0:01:06]}  Rxh2+ {[%clk 0:00:47]} 32. Kg1 {[%clk 0:01:07]}  Rcg2+ {[%clk 0:00:45]} 33. Kf1 {[%clk 0:01:06]}  Bc4+ {[%clk 0:00:46]} 34. Ke1 {[%clk 0:01:06]}  Rg1+ {[%clk 0:00:46]} 0-1


[Site "https://www.chess.com"]

[Event "Titled Tuesday Blitz June 6 Early 2023"]
[White "Escanor89"]
[Black "Garcia Jimenez, Francisco Javier"]
[BlackFideId "2231590"]
[WhiteElo "2530"]
[BlackElo "2246"]
[Result "0-1"]
[Round "10"]
[TimeControl "180+2"]
[Date "2023.06.06"]
[WhiteClock "0:00:02"]
[BlackClock "0:00:55"]
[Board "76"]

1. e4 {[%clk 0:02:52]}  d5 {[%clk 0:02:59]} 2. exd5 {[%clk 0:02:52]}  Qxd5 {[%clk 0:03:00]} 3. Nc3 {[%clk 0:02:52]}  Qd8 {[%clk 0:03:00]} 4. d4 {[%clk 0:02:52]}  Nf6 {[%clk 0:03:01]} 5. Nf3 {[%clk 0:02:48]}  Bg4 {[%clk 0:03:00]} 6. h3 {[%clk 0:02:47]}  Bxf3 {[%clk 0:03:01]} 7. Qxf3 {[%clk 0:02:47]}  c6 {[%clk 0:03:02]} 8. Ne2 {[%clk 0:02:45]}  e6 {[%clk 0:02:56]} 9. g4 {[%clk 0:02:45]}  Qd5 {[%clk 0:02:56]} 10. Bg2 {[%clk 0:02:45]}  Qxf3 {[%clk 0:02:56]} 11. Bxf3 {[%clk 0:02:45]}  Nbd7 {[%clk 0:02:56]} 12. Bf4 {[%clk 0:02:43]}  Nd5 {[%clk 0:02:56]} 13. Bg3 {[%clk 0:02:43]}  Be7 {[%clk 0:02:52]} 14. Bg2 {[%clk 0:02:36]}  h5 {[%clk 0:02:50]} 15. O-O-O {[%clk 0:02:34]}  hxg4 {[%clk 0:02:49]} 16. hxg4 {[%clk 0:02:34]}  O-O-O {[%clk 0:02:49]} 17. c4 {[%clk 0:02:25]}  N5b6 {[%clk 0:02:32]} 18. b3 {[%clk 0:02:21]}  Bf6 {[%clk 0:02:28]} 19. Kc2 {[%clk 0:01:39]}  a5 {[%clk 0:02:23]} 20. Rxh8 {[%clk 0:01:32]}  Rxh8 {[%clk 0:02:23]} 21. Nc3 {[%clk 0:01:32]}  Nb8 {[%clk 0:02:18]} 22. Ne4 {[%clk 0:01:29]}  Na6 {[%clk 0:02:02]} 23. Nd6+ {[%clk 0:01:20]}  Kd7 {[%clk 0:02:01]} 24. Nxf7 {[%clk 0:01:08]}  Nb4+ {[%clk 0:02:01]} 25. Kb2 {[%clk 0:01:04]}  Rf8 {[%clk 0:01:59]} 26. Ne5+ {[%clk 0:01:00]}  Bxe5 {[%clk 0:02:00]} 27. dxe5+ {[%clk 0:01:00]}  Kc7 {[%clk 0:01:53]} 28. Rd6 {[%clk 0:00:58]}  Nc8 {[%clk 0:01:45]} 29. Rxe6 {[%clk 0:00:54]}  Nd3+ {[%clk 0:01:46]} 30. Kc3 {[%clk 0:00:52]}  Nxf2 {[%clk 0:01:41]} 31. Rg6 {[%clk 0:00:50]}  Nd1+ {[%clk 0:01:39]} 32. Kd2 {[%clk 0:00:47]}  Rd8+ {[%clk 0:01:38]} 33. Kc1 {[%clk 0:00:45]}  Nc3 {[%clk 0:01:28]} 34. Rxg7+ {[%clk 0:00:41]}  Kb6 {[%clk 0:01:27]} 35. Kc2 {[%clk 0:00:31]}  Nd1 {[%clk 0:01:21]} 36. Be4 {[%clk 0:00:25]}  Ne3+ {[%clk 0:01:20]} 37. Kc3 {[%clk 0:00:21]}  Nd1+ {[%clk 0:01:19]} 38. Kc2 {[%clk 0:00:21]}  Ne3+ {[%clk 0:01:19]} 39. Kb2 {[%clk 0:00:12]}  Rd2+ {[%clk 0:01:18]} 40. Ka3 {[%clk 0:00:12]}  Rd4 {[%clk 0:01:15]} 41. Bf5 {[%clk 0:00:11]}  Rd2 {[%clk 0:01:07]} 42. Bf4 {[%clk 0:00:10]}  Nc2+ {[%clk 0:00:55]} 43. Bxc2 {[%clk 0:00:10]}  Rxc2 {[%clk 0:00:56]} 44. Be3+ {[%clk 0:00:10]}  Ka6 {[%clk 0:00:54]} 45. e6 {[%clk 0:00:09]}  b5 {[%clk 0:00:54]} 46. cxb5+ {[%clk 0:00:05]}  cxb5 {[%clk 0:00:55]} 47. b4 {[%clk 0:00:03]}  a4 {[%clk 0:00:55]} 48. Bd4 {[%clk 0:00:02]}  Nd6 {[%clk 0:00:55]} 0-1


[Site "https://www.chess.com"]

[Event "Titled Tuesday Blitz June 6 Early 2023"]
[White "LeoLV10"]
[Black "Janaszak, Dawid"]
[BlackFideId "1119206"]
[WhiteElo "2431"]
[BlackElo "2220"]
[Result "0-1"]
[Round "10"]
[TimeControl "180+2"]
[Date "2023.06.06"]
[WhiteClock "0:00:05"]
[BlackClock "0:00:17"]
[Board "79"]

1. e4 {[%clk 0:03:00]}  c5 {[%clk 0:02:59]} 2. Nf3 {[%clk 0:02:59]}  Nc6 {[%clk 0:03:00]} 3. d4 {[%clk 0:02:59]}  cxd4 {[%clk 0:03:01]} 4. Nxd4 {[%clk 0:02:59]}  g6 {[%clk 0:03:01]} 5. c4 {[%clk 0:02:53]}  Bg7 {[%clk 0:02:57]} 6. Be3 {[%clk 0:02:53]}  Qb6 {[%clk 0:02:57]} 7. Nb3 {[%clk 0:02:44]}  Qd8 {[%clk 0:02:57]} 8. Nc3 {[%clk 0:02:44]}  Bxc3+ {[%clk 0:02:56]} 9. bxc3 {[%clk 0:02:45]}  d6 {[%clk 0:02:56]} 10. Be2 {[%clk 0:02:45]}  Nf6 {[%clk 0:02:56]} 11. Qc2 {[%clk 0:02:35]}  b6 {[%clk 0:02:49]} 12. O-O {[%clk 0:02:33]}  Be6 {[%clk 0:02:48]} 13. Rad1 {[%clk 0:02:32]}  Qc7 {[%clk 0:02:47]} 14. Nd4 {[%clk 0:02:29]}  Bd7 {[%clk 0:02:34]} 15. Nb5 {[%clk 0:02:25]}  Qb8 {[%clk 0:02:29]} 16. f4 {[%clk 0:02:24]}  O-O {[%clk 0:02:25]} 17. h3 {[%clk 0:02:16]}  a6 {[%clk 0:02:24]} 18. Nd4 {[%clk 0:02:10]}  Qc7 {[%clk 0:02:24]} 19. Rb1 {[%clk 0:02:09]}  Na5 {[%clk 0:02:20]} 20. Qd3 {[%clk 0:02:01]}  Rac8 {[%clk 0:02:15]} 21. Rb4 {[%clk 0:01:58]}  Nb7 {[%clk 0:01:58]} 22. Nf3 {[%clk 0:01:40]}  Nc5 {[%clk 0:01:55]} 23. Bxc5 {[%clk 0:01:35]}  Qxc5+ {[%clk 0:01:49]} 24. Kh2 {[%clk 0:01:25]}  Bc6 {[%clk 0:01:42]} 25. Nd2 {[%clk 0:01:23]}  Ba8 {[%clk 0:01:25]} 26. a4 {[%clk 0:01:14]}  Nd7 {[%clk 0:01:25]} 27. Bf3 {[%clk 0:01:04]}  Qc7 {[%clk 0:01:25]} 28. Rfb1 {[%clk 0:00:47]}  Bc6 {[%clk 0:01:25]} 29. Qe3 {[%clk 0:00:34]}  a5 {[%clk 0:01:23]} 30. R4b2 {[%clk 0:00:15]}  Bxa4 {[%clk 0:01:23]} 31. f5 {[%clk 0:00:16]}  Bc6 {[%clk 0:01:22]} 32. fxg6 {[%clk 0:00:16]}  fxg6 {[%clk 0:01:22]} 33. Bg4 {[%clk 0:00:16]}  d5+ {[%clk 0:01:13]} 34. Kh1 {[%clk 0:00:12]}  dxe4 {[%clk 0:01:08]} 35. Be6+ {[%clk 0:00:11]}  Kg7 {[%clk 0:01:06]} 36. Qd4+ {[%clk 0:00:10]}  Rf6 {[%clk 0:00:58]} 37. Bxd7 {[%clk 0:00:08]}  Qxd7 {[%clk 0:00:59]} 38. Rxb6 {[%clk 0:00:07]}  e3 {[%clk 0:00:51]} 39. Qxe3 {[%clk 0:00:06]}  Rcf8 {[%clk 0:00:44]} 40. Ne4 {[%clk 0:00:06]}  Re6 {[%clk 0:00:37]} 41. Nc5 {[%clk 0:00:05]}  Rxe3 {[%clk 0:00:37]} 42. Nxd7 {[%clk 0:00:06]}  Bxd7 {[%clk 0:00:38]} 43. Rb7 {[%clk 0:00:06]}  Rd3 {[%clk 0:00:37]} 44. c5 {[%clk 0:00:06]}  Rf7 {[%clk 0:00:33]} 45. R1b6 {[%clk 0:00:04]}  Bf5 {[%clk 0:00:23]} 46. c6 {[%clk 0:00:04]}  Be4 {[%clk 0:00:23]} 47. Kh2 {[%clk 0:00:04]}  Rd2 {[%clk 0:00:23]} 48. c7 {[%clk 0:00:05]}  Rxg2+ {[%clk 0:00:19]} 49. Kh1 {[%clk 0:00:05]}  Rf1# {[%clk 0:00:17]} 0-1


[Site "https://www.chess.com"]

[Event "Titled Tuesday Blitz June 6 Early 2023"]
[White "Aarav Dengla"]
[Black "Ansh M Shah"]
[WhiteFideId "45059756"]
[BlackFideId "25033379"]
[WhiteElo "2288"]
[BlackElo "2084"]
[Result "1-0"]
[Round "10"]
[TimeControl "180+2"]
[Date "2023.06.06"]
[WhiteClock "0:01:03"]
[BlackClock "0:00:16"]
[Board "80"]

1. e4 {[%clk 0:02:57]}  c6 {[%clk 0:03:00]} 2. d4 {[%clk 0:02:56]}  d5 {[%clk 0:03:01]} 3. exd5 {[%clk 0:02:57]}  cxd5 {[%clk 0:03:02]} 4. Bd3 {[%clk 0:02:57]}  Nc6 {[%clk 0:03:03]} 5. c3 {[%clk 0:02:57]}  Nf6 {[%clk 0:03:04]} 6. h3 {[%clk 0:02:57]}  e5 {[%clk 0:03:04]} 7. dxe5 {[%clk 0:02:57]}  Nxe5 {[%clk 0:03:04]} 8. Nf3 {[%clk 0:02:57]}  Nxd3+ {[%clk 0:03:04]} 9. Qxd3 {[%clk 0:02:58]}  Bd6 {[%clk 0:03:05]} 10. Bg5 {[%clk 0:02:56]}  O-O {[%clk 0:03:06]} 11. O-O {[%clk 0:02:56]}  h6 {[%clk 0:03:05]} 12. Bxf6 {[%clk 0:02:55]}  Qxf6 {[%clk 0:03:04]} 13. Qxd5 {[%clk 0:02:56]}  Rd8 {[%clk 0:03:02]} 14. Qe4 {[%clk 0:02:52]}  Bf5 {[%clk 0:03:00]} 15. Qa4 {[%clk 0:02:52]}  Bxh3 {[%clk 0:02:53]} 16. Nbd2 {[%clk 0:02:51]}  Bd7 {[%clk 0:02:42]} 17. Qd4 {[%clk 0:02:48]}  Qg6 {[%clk 0:02:34]} 18. Qe4 {[%clk 0:02:38]}  Bf5 {[%clk 0:02:13]} 19. Qa4 {[%clk 0:02:25]}  Bc5 {[%clk 0:01:54]} 20. Qb5 {[%clk 0:02:12]}  Bb6 {[%clk 0:01:37]} 21. Qb4 {[%clk 0:01:48]}  Be4 {[%clk 0:00:48]} 22. Qxe4 {[%clk 0:01:31]}  f5 {[%clk 0:00:40]} 23. Qc4+ {[%clk 0:01:24]}  Kh7 {[%clk 0:00:39]} 24. Ne5 {[%clk 0:01:17]}  Qg5 {[%clk 0:00:38]} 25. Ndf3 {[%clk 0:01:16]}  Qf6 {[%clk 0:00:36]} 26. Rad1 {[%clk 0:01:15]}  Re8 {[%clk 0:00:34]} 27. Nd7 {[%clk 0:01:09]}  Qc6 {[%clk 0:00:26]} 28. Qxc6 {[%clk 0:01:08]}  bxc6 {[%clk 0:00:27]} 29. Rfe1 {[%clk 0:01:08]}  Bc7 {[%clk 0:00:21]} 30. Nc5 {[%clk 0:01:03]}  g5 {[%clk 0:00:17]} 31. Rd7+ {[%clk 0:01:02]}  Kg6 {[%clk 0:00:18]} 32. Rxe8 {[%clk 0:01:02]}  Rxe8 {[%clk 0:00:17]} 33. Rxc7 {[%clk 0:01:02]}  g4 {[%clk 0:00:18]} 34. Rxc6+ {[%clk 0:01:02]}  Kh5 {[%clk 0:00:17]} 35. Nd4 {[%clk 0:01:02]}  f4 {[%clk 0:00:17]} 36. Nd3 {[%clk 0:01:02]}  g3 {[%clk 0:00:15]} 37. Nxf4+ {[%clk 0:01:01]}  Kg4 {[%clk 0:00:16]} 38. fxg3 {[%clk 0:01:02]}  Kxg3 {[%clk 0:00:16]} 39. Nde2+ {[%clk 0:01:02]}  Kg4 {[%clk 0:00:17]} 40. Rxh6 {[%clk 0:01:02]}  Rd8 {[%clk 0:00:17]} 41. Kf2 {[%clk 0:01:02]}  Rd2 {[%clk 0:00:17]} 42. Ke3 {[%clk 0:01:02]}  Rxb2 {[%clk 0:00:16]} 43. Nd4 {[%clk 0:01:02]}  Rxa2 {[%clk 0:00:16]} 44. Rg6+ {[%clk 0:01:03]}  Kh4 {[%clk 0:00:16]} 45. Nf5# {[%clk 0:01:03]} 1-0


[Site "https://www.chess.com"]

[Event "Titled Tuesday Blitz June 6 Early 2023"]
[White "Bashirli, Saadat"]
[Black "Bas Mas, Jose Joaquin"]
[WhiteFideId "13429990"]
[BlackFideId "22219064"]
[WhiteElo "1408"]
[BlackElo "2212"]
[Result "1-0"]
[Round "10"]
[TimeControl "180+2"]
[Date "2023.06.06"]
[WhiteClock "0:00:06"]
[BlackClock "0:01:28"]
[Board "81"]

1. d4 {[%clk 0:03:00]}  d5 {[%clk 0:02:59]} 2. e3 {[%clk 0:03:01]}  Nf6 {[%clk 0:02:59]} 3. f4 {[%clk 0:03:01]}  Bf5 {[%clk 0:02:57]} 4. Bd3 {[%clk 0:03:00]}  Bxd3 {[%clk 0:02:56]} 5. cxd3 {[%clk 0:03:01]}  e6 {[%clk 0:02:55]} 6. Nf3 {[%clk 0:03:00]}  Be7 {[%clk 0:02:54]} 7. O-O {[%clk 0:03:00]}  O-O {[%clk 0:02:54]} 8. Nc3 {[%clk 0:02:59]}  c5 {[%clk 0:02:54]} 9. dxc5 {[%clk 0:02:57]}  Bxc5 {[%clk 0:02:54]} 10. d4 {[%clk 0:02:57]}  Be7 {[%clk 0:02:54]} 11. Ne5 {[%clk 0:02:51]}  Nc6 {[%clk 0:02:54]} 12. Bd2 {[%clk 0:02:46]}  Rc8 {[%clk 0:02:53]} 13. Rc1 {[%clk 0:02:45]}  Qb6 {[%clk 0:02:52]} 14. Na4 {[%clk 0:02:33]}  Qa6 {[%clk 0:02:49]} 15. a3 {[%clk 0:02:27]}  Ne4 {[%clk 0:02:48]} 16. Nc3 {[%clk 0:02:23]}  Nxe5 {[%clk 0:02:39]} 17. fxe5 {[%clk 0:02:18]}  Nxc3 {[%clk 0:02:38]} 18. Rxc3 {[%clk 0:02:12]}  Rxc3 {[%clk 0:02:37]} 19. Bxc3 {[%clk 0:02:11]}  f6 {[%clk 0:02:34]} 20. exf6 {[%clk 0:01:46]}  Rxf6 {[%clk 0:02:34]} 21. Rxf6 {[%clk 0:01:43]}  Bxf6 {[%clk 0:02:35]} 22. Kf2 {[%clk 0:01:39]}  g6 {[%clk 0:02:34]} 23. Qe2 {[%clk 0:01:38]}  Qxe2+ {[%clk 0:02:33]} 24. Kxe2 {[%clk 0:01:39]}  Kf7 {[%clk 0:02:30]} 25. Kf3 {[%clk 0:01:39]}  Bg5 {[%clk 0:02:28]} 26. e4 {[%clk 0:01:38]}  Bc1 {[%clk 0:02:21]} 27. e5 {[%clk 0:01:27]}  Ke7 {[%clk 0:02:18]} 28. Ke2 {[%clk 0:01:22]}  Kd7 {[%clk 0:02:16]} 29. Kd1 {[%clk 0:01:22]}  Be3 {[%clk 0:02:16]} 30. Ke2 {[%clk 0:01:20]}  Bf4 {[%clk 0:02:15]} 31. g3 {[%clk 0:01:21]}  Bh6 {[%clk 0:02:15]} 32. Bd2 {[%clk 0:01:19]}  Bf8 {[%clk 0:02:13]} 33. Kd3 {[%clk 0:01:17]}  Kc6 {[%clk 0:02:13]} 34. Kc3 {[%clk 0:01:14]}  b5 {[%clk 0:02:04]} 35. b4 {[%clk 0:01:09]}  a5 {[%clk 0:01:56]} 36. Bg5 {[%clk 0:01:08]}  a4 {[%clk 0:01:55]} 37. Bf6 {[%clk 0:01:06]}  Bh6 {[%clk 0:01:55]} 38. h4 {[%clk 0:00:33]}  Bc1 {[%clk 0:01:46]} 39. Bg5 {[%clk 0:00:32]}  Bxa3 {[%clk 0:01:43]} 40. Bd2 {[%clk 0:00:30]}  Kd7 {[%clk 0:01:37]} 41. Kc2 {[%clk 0:00:30]}  Ke8 {[%clk 0:01:31]} 42. Kb1 {[%clk 0:00:29]}  g5 {[%clk 0:01:30]} 43. h5 {[%clk 0:00:19]}  Kf7 {[%clk 0:01:27]} 44. Ka2 {[%clk 0:00:17]}  Bxb4 {[%clk 0:01:17]} 45. Bxb4 {[%clk 0:00:16]}  g4 {[%clk 0:01:17]} 46. Bd2 {[%clk 0:00:15]}  Ke7 {[%clk 0:01:16]} 47. Ka3 {[%clk 0:00:13]}  Kd7 {[%clk 0:01:16]} 48. Kb4 {[%clk 0:00:12]}  Kc6 {[%clk 0:01:17]} 49. h6 {[%clk 0:00:09]}  Kb6 {[%clk 0:01:16]} 50. Bc1 {[%clk 0:00:09]}  Kc6 {[%clk 0:01:14]} 51. Ka5 {[%clk 0:00:08]}  Kd7 {[%clk 0:01:12]} 52. Kxb5 {[%clk 0:00:08]}  Ke7 {[%clk 0:01:12]} 53. Kxa4 {[%clk 0:00:07]}  Kf7 {[%clk 0:01:13]} 54. Kb5 {[%clk 0:00:02]}  Kg6 {[%clk 0:01:14]} 55. Kc6 {[%clk 0:00:03]}  Kf5 {[%clk 0:01:15]} 56. Kd6 {[%clk 0:00:03]}  Ke4 {[%clk 0:01:15]} 57. Kxe6 {[%clk 0:00:03]}  Kxd4 {[%clk 0:01:16]} 58. Kd6 {[%clk 0:00:03]}  Kc3 {[%clk 0:01:14]} 59. e6 {[%clk 0:00:04]}  d4 {[%clk 0:01:14]} 60. e7 {[%clk 0:00:04]}  d3 {[%clk 0:01:15]} 61. e8=Q {[%clk 0:00:05]}  Kc2 {[%clk 0:01:16]} 62. Qc8+ {[%clk 0:00:04]}  Kd1 {[%clk 0:01:16]} 63. Bf4 {[%clk 0:00:05]}  d2 {[%clk 0:01:16]} 64. Bxd2 {[%clk 0:00:04]}  Kxd2 {[%clk 0:01:16]} 65. Qxg4 {[%clk 0:00:04]}  Ke3 {[%clk 0:01:16]} 66. Qg7 {[%clk 0:00:05]}  Kf2 {[%clk 0:01:17]} 67. Qxh7 {[%clk 0:00:05]}  Kf3 {[%clk 0:01:18]} 68. Qg7 {[%clk 0:00:05]}  Kg2 {[%clk 0:01:19]} 69. h7 {[%clk 0:00:05]}  Kh3 {[%clk 0:01:20]} 70. h8=Q+ {[%clk 0:00:05]}  Kg2 {[%clk 0:01:20]} 71. Qh3+ {[%clk 0:00:06]}  Kg1 {[%clk 0:01:21]} 72. Qh2+ {[%clk 0:00:05]}  Kxh2 {[%clk 0:01:21]} 73. g4 {[%clk 0:00:05]}  Kh1 {[%clk 0:01:22]} 74. g5 {[%clk 0:00:05]}  Kh2 {[%clk 0:01:23]} 75. g6 {[%clk 0:00:06]}  Kh1 {[%clk 0:01:24]} 76. Qg8 {[%clk 0:00:06]}  Kh2 {[%clk 0:01:24]} 77. g7 {[%clk 0:00:06]}  Kh1 {[%clk 0:01:25]} 78. Qf7 {[%clk 0:00:06]}  Kh2 {[%clk 0:01:26]} 79. Qg6 {[%clk 0:00:06]}  Kh1 {[%clk 0:01:27]} 80. g8=Q {[%clk 0:00:05]}  Kh2 {[%clk 0:01:28]} 81. Q8h7# {[%clk 0:00:06]} 1-0


[Site "https://www.chess.com"]

[Event "Titled Tuesday Blitz June 6 Early 2023"]
[White "Ljukin, Sergei"]
[Black "Cardozo Munar, Carlos Eduardo"]
[WhiteFideId "14102200"]
[BlackFideId "4409477"]
[WhiteElo "2312"]
[BlackElo "2067"]
[Result "1/2-1/2"]
[Round "10"]
[TimeControl "180+2"]
[Date "2023.06.06"]
[WhiteClock "0:00:05"]
[BlackClock "0:00:20"]
[Board "82"]

1. e4 {[%clk 0:02:55]}  e6 {[%clk 0:02:57]} 2. d4 {[%clk 0:02:55]}  d5 {[%clk 0:02:58]} 3. Nc3 {[%clk 0:02:55]}  Nf6 {[%clk 0:02:57]} 4. Bg5 {[%clk 0:02:55]}  Be7 {[%clk 0:02:56]} 5. e5 {[%clk 0:02:55]}  Nfd7 {[%clk 0:02:57]} 6. h4 {[%clk 0:02:56]}  Bxg5 {[%clk 0:02:57]} 7. hxg5 {[%clk 0:02:55]}  Qxg5 {[%clk 0:02:58]} 8. Nh3 {[%clk 0:02:56]}  Qh4 {[%clk 0:02:59]} 9. Qd2 {[%clk 0:02:46]}  a6 {[%clk 0:02:58]} 10. O-O-O {[%clk 0:02:46]}  Nc6 {[%clk 0:02:58]} 11. f4 {[%clk 0:02:41]}  h6 {[%clk 0:02:54]} 12. Be2 {[%clk 0:02:33]}  Nb6 {[%clk 0:02:53]} 13. Qe3 {[%clk 0:02:25]}  Qe7 {[%clk 0:02:50]} 14. g4 {[%clk 0:02:24]}  Bd7 {[%clk 0:02:49]} 15. f5 {[%clk 0:02:08]}  O-O-O {[%clk 0:02:49]} 16. Nf4 {[%clk 0:02:06]}  exf5 {[%clk 0:02:20]} 17. Ncxd5 {[%clk 0:01:30]}  Nxd5 {[%clk 0:02:21]} 18. Nxd5 {[%clk 0:01:30]}  Qg5 {[%clk 0:02:21]} 19. Qxg5 {[%clk 0:01:13]}  hxg5 {[%clk 0:02:22]} 20. gxf5 {[%clk 0:01:13]}  Rxh1 {[%clk 0:02:20]} 21. Rxh1 {[%clk 0:01:10]}  Bxf5 {[%clk 0:02:21]} 22. c4 {[%clk 0:01:04]}  Nxd4 {[%clk 0:02:17]} 23. Ne7+ {[%clk 0:00:56]}  Kb8 {[%clk 0:02:17]} 24. Nxf5 {[%clk 0:00:56]}  Nxe2+ {[%clk 0:02:09]} 25. Kc2 {[%clk 0:00:53]}  g6 {[%clk 0:01:55]} 26. Nh6 {[%clk 0:00:40]}  Rd7 {[%clk 0:01:41]} 27. Rd1 {[%clk 0:00:30]}  Nd4+ {[%clk 0:01:35]} 28. Kc3 {[%clk 0:00:25]}  c5 {[%clk 0:01:35]} 29. Rf1 {[%clk 0:00:22]}  Re7 {[%clk 0:01:35]} 30. Nxf7 {[%clk 0:00:20]}  Ne2+ {[%clk 0:01:26]} 31. Kd2 {[%clk 0:00:19]}  Ng3 {[%clk 0:01:26]} 32. Rf3 {[%clk 0:00:16]}  Rd7+ {[%clk 0:01:19]} 33. Kc2 {[%clk 0:00:14]}  Ne4 {[%clk 0:01:11]} 34. Re3 {[%clk 0:00:14]}  Rxf7 {[%clk 0:01:08]} 35. Rxe4 {[%clk 0:00:14]}  Re7 {[%clk 0:01:09]} 36. e6 {[%clk 0:00:13]}  g4 {[%clk 0:01:06]} 37. Kd3 {[%clk 0:00:11]}  g3 {[%clk 0:01:05]} 38. Ke2 {[%clk 0:00:12]}  Kc7 {[%clk 0:01:03]} 39. Kf3 {[%clk 0:00:10]}  Kd6 {[%clk 0:01:03]} 40. Kxg3 {[%clk 0:00:09]}  Rxe6 {[%clk 0:01:03]} 41. Rg4 {[%clk 0:00:10]}  Kc7 {[%clk 0:00:49]} 42. Kf3 {[%clk 0:00:10]}  Kb6 {[%clk 0:00:47]} 43. Rg5 {[%clk 0:00:08]}  Kc6 {[%clk 0:00:46]} 44. Kf2 {[%clk 0:00:08]}  a5 {[%clk 0:00:43]} 45. a4 {[%clk 0:00:06]}  Kc7 {[%clk 0:00:32]} 46. Rxc5+ {[%clk 0:00:05]}  Kb6 {[%clk 0:00:32]} 47. Rb5+ {[%clk 0:00:04]}  Ka6 {[%clk 0:00:32]} 48. Rg5 {[%clk 0:00:04]}  b6 {[%clk 0:00:28]} 49. b3 {[%clk 0:00:04]}  Kb7 {[%clk 0:00:24]} 50. Kf3 {[%clk 0:00:04]}  Kc6 {[%clk 0:00:24]} 51. Kf4 {[%clk 0:00:04]}  Kd6 {[%clk 0:00:19]} 52. Kf3 {[%clk 0:00:04]}  Kc6 {[%clk 0:00:19]} 53. Kf4 {[%clk 0:00:05]}  Kd6 {[%clk 0:00:20]} 54. Kf3 {[%clk 0:00:05]}  Kc6 {[%clk 0:00:20]} 1/2-1/2


[Site "https://www.chess.com"]